bitfinex-derivatives/quotes_BTCF0:USTF0_20210105
["timestamp","ask_amount","ask_price","bid_price","bid_amount"]
[1609813660126,0.61952968,32472.0,32469.0,0.13632608]
[1609813660526,0.51531591,32474.0,32469.0,0.13632608]
[1609813661127,0.15967,32476.0,32469.0,0.13632608]
[1609813661527,0.13934,32484.0,32469.0,0.13632608]
[1609813661728,0.51722217,32485.0,32469.0,0.13632608]
[1609813662028,0.65354825,32485.0,32484.0,0.13632608]
[1609813662630,0.65354825,32485.0,32463.0,0.11983]
[1609813662829,3.774,32481.0,32463.0,0.11983]
[1609813663629,3.774,32481.0,32456.0,0.15025]
[1609813664030,3.774,32481.0,32461.0,0.13632608]
[1609813666036,0.13632608,32462.0,32456.0,0.28657608]
[1609813666234,0.13632608,32462.0,32456.0,0.13632608]
[1609813666435,0.13632608,32462.0,32447.0,4.9233]
[1609813667335,0.13632608,32462.0,32427.0,0.2998]
[1609813667535,3.8932,32461.0,32427.0,4.8144]
[1609813668036,3.8932,32461.0,32451.0,0.13632608]
[1609813668235,0.22103,32466.0,32451.0,0.13632608]
[1609813670037,0.22103,32466.0,32446.0,0.16044]
[1609813670238,0.0914,32466.0,32446.0,0.16044]
[1609813670437,0.0914,32466.0,32465.0,0.13632608]
[1609813670637,0.13632608,32469.0,32465.0,0.13632608]
[1609813674147,0.13632608,32469.0,32450.0,4.3482]
[1609813674349,0.13632608,32469.0,32446.0,0.16044]
[1609813674547,3.79512608,32469.0,32438.0,0.10447]
[1609813674748,3.6588,32469.0,32438.0,0.10447]
[1609813675750,3.6588,32469.0,32446.0,2.23741517]
[1609813676450,3.6588,32469.0,32438.0,0.10447]
[1609813676650,3.6588,32469.0,32430.0,2.23466837]
[1609813677250,3.6588,32469.0,32449.0,0.13632608]
[1609813679253,3.6588,32469.0,32458.0,0.13632608]
[1609813679455,0.14143,32473.0,32458.0,0.13632608]
[1609813679657,0.51857221,32475.0,32458.0,0.13632608]
[1609813680054,0.5190844,32476.0,32458.0,0.13632608]
[1609813681156,0.5190844,32476.0,32449.0,0.11126]
[1609813681455,0.6787344,32476.0,32449.0,0.11126]
[1609813681655,0.13632608,32450.0,32449.0,0.11126]
[1609813682057,0.15507,32461.0,32449.0,0.11126]
[1609813683660,0.13632608,32456.0,32455.0,0.13632608]
[1609813689367,0.11547,32469.0,32453.0,4.6399]
[1609813689567,0.15965,32476.0,32453.0,4.6399]
[1609813689868,0.53748282,32477.0,32453.0,4.6399]
[1609813690070,0.01748766,32477.0,32465.0,0.13632608]
[1609813690871,0.01752977,32481.0,32465.0,0.13632608]
[1609813691671,0.53839492,32482.0,32465.0,0.13632608]
[1609813692070,0.53839492,32482.0,32474.0,0.13632608]
[1609813693072,0.53839492,32482.0,32462.0,5.1458]
[1609813693271,0.01755545,32483.0,32462.0,5.1458]
[1609813694172,0.65616475,32485.0,32473.0,0.13632608]
[1609813694571,0.65616475,32485.0,32462.0,5.1458]
[1609813694774,0.11667,32485.0,32462.0,5.1458]
[1609813694972,0.53965738,32486.0,32462.0,5.1458]
[1609813695172,0.11721,32485.0,32462.0,5.1458]
[1609813696072,0.11721,32485.0,32471.0,0.13632608]
[1609813697173,0.65940452,32485.0,32471.0,0.13632608]
[1609813697572,0.65940452,32485.0,32462.0,5.1458]
[1609813698173,0.65940452,32485.0,32464.0,0.13632608]
[1609813698774,0.01765615,32484.0,32464.0,0.13632608]
[1609813699476,0.0176497,32483.0,32464.0,0.13632608]
[1609813700080,0.0176497,32483.0,32482.0,0.13632608]
[1609813701378,0.54169657,32490.0,32482.0,0.13632608]
[1609813701782,0.54169657,32490.0,32476.0,0.11272]
[1609813702080,0.54169657,32490.0,32479.0,0.13632608]
[1609813703684,0.0925,32489.0,32479.0,0.13632608]
[1609813703881,0.54169657,32490.0,32479.0,0.13632608]
[1609813704080,0.13632608,32482.0,32479.0,0.13632608]
[1609813704284,0.0926,32481.0,32479.0,0.13632608]
[1609813705784,0.0926,32481.0,32476.0,0.11272]
[1609813705984,0.54169657,32490.0,32480.0,4.9852]
[1609813706386,0.54169657,32490.0,32483.0,0.13632608]
[1609813706985,0.0932,32489.0,32483.0,0.13632608]
[1609813708190,0.0932,32489.0,32480.0,4.9852]
[1609813708793,0.15077,32494.0,32480.0,4.9852]
[1609813708993,0.5423559,32495.0,32480.0,4.9852]
[1609813709189,0.5423559,32495.0,32494.0,0.13632608]
[1609813713999,0.13632608,32497.0,32494.0,0.13632608]
[1609813717401,0.13632608,32501.0,32494.0,4.31952608]
[1609813717602,0.54410494,32506.0,32494.0,4.1832]
[1609813718803,0.01771766,32506.0,32494.0,4.1832]
[1609813719306,0.01771766,32506.0,32505.0,0.13632608]
[1609813719705,0.13632608,32510.0,32505.0,0.13632608]
[1609813721407,0.13632608,32510.0,32509.0,0.13632608]
[1609813724612,0.22852608,32510.0,32509.0,0.13632608]
[1609813724811,0.545334,32516.0,32509.0,0.13632608]
[1609813725412,0.545334,32516.0,32515.0,0.13632608]
[1609813726214,0.637634,32516.0,32515.0,0.13632608]
[1609813726716,0.545334,32516.0,32515.0,0.13632608]
[1609813727320,0.68166008,32516.0,32515.0,0.13632608]
[1609813727719,0.77426008,32516.0,32515.0,0.13632608]
[1609813728319,0.68166008,32516.0,32515.0,0.13632608]
[1609813729019,0.545334,32516.0,32515.0,0.13632608]
[1609813729419,0.636234,32516.0,32515.0,0.13632608]
[1609813730022,0.545334,32516.0,32515.0,0.13632608]
[1609813730221,0.63261807,32517.0,32515.0,0.13632608]
[1609813730920,0.63261807,32517.0,32515.0,0.77352608]
[1609813731121,0.13632608,32522.0,32515.0,0.77352608]
[1609813731521,0.13632608,32522.0,32521.0,0.13632608]
[1609813733523,0.22982608,32522.0,32521.0,0.13632608]
[1609813733724,0.13632608,32522.0,32521.0,0.13632608]
[1609813734625,0.22722608,32522.0,32521.0,0.13632608]
[1609813734825,0.13632608,32522.0,32521.0,0.13632608]
[1609813736627,0.13632608,32522.0,32509.0,0.15237]
[1609813736827,0.27821608,32522.0,32502.0,0.12071]
[1609813737026,0.27821608,32522.0,32480.0,2.21939274]
[1609813737228,0.27821608,32522.0,32477.0,0.2892]
[1609813737427,4.7218,32519.0,32486.0,3.8863]
[1609813737830,0.14189,32522.0,32475.0,2.21969304]
[1609813738031,0.14189,32522.0,32494.0,4.5429]
[1609813738228,0.14189,32522.0,32508.0,0.13632608]
[1609813739930,0.15946295,32522.0,32508.0,0.13632608]
[1609813740132,0.13632608,32509.0,32508.0,0.13632608]
[1609813740331,0.27248608,32509.0,32508.0,0.13632608]
[1609813743439,0.13616,32509.0,32493.0,4.1424]
[1609813743940,0.13616,32509.0,32492.0,0.13412]
[1609813744140,0.13616,32509.0,32508.0,0.13632608]
[1609813744942,0.13616,32509.0,32490.0,4.1673]
[1609813745342,0.14259,32509.0,32490.0,4.1673]
[1609813746145,0.14259,32509.0,32503.0,0.13632608]
[1609813748146,0.27891608,32509.0,32508.0,0.13632608]
[1609813749147,0.14259,32509.0,32508.0,0.13632608]
[1609813749649,0.00891238,32517.0,32508.0,0.13632608]
[1609813749852,0.00893178,32524.0,32508.0,0.13632608]
[1609813750251,0.00893178,32524.0,32519.0,0.13632608]
[1609813751053,0.54326253,32525.0,32519.0,0.13632608]
[1609813751054,0.00894764,32525.0,32519.0,0.13632608]
[1609813752255,0.13632608,32520.0,32519.0,0.13632608]
[1609813752856,0.12535,32521.0,32511.0,4.2999]
[1609813754158,0.12535,32521.0,32514.0,0.13632608]
[1609813755863,0.12535,32521.0,32511.0,4.2999]
[1609813756264,0.12535,32521.0,32514.0,0.13632608]
[1609813757265,0.12535,32521.0,32511.0,4.2999]
[1609813757565,0.0090139,32527.0,32511.0,4.2999]
[1609813757968,0.02690787,32524.0,32511.0,4.2999]
[1609813758167,0.16083787,32524.0,32511.0,4.2999]
[1609813758368,0.16083787,32524.0,32514.0,0.13632608]
[1609813758569,0.00902982,32523.0,32514.0,0.13632608]
[1609813760371,0.13632608,32515.0,32514.0,0.13632608]
[1609813760671,4.88382608,32515.0,32514.0,0.13632608]
[1609813767380,0.13632608,32515.0,32514.0,0.13632608]
[1609813767581,0.00902982,32523.0,32514.0,0.13632608]
[1609813768381,0.00902982,32523.0,32522.0,0.13632608]
[1609813772384,0.1453559,32523.0,32522.0,0.13632608]
[1609813772785,0.00902982,32523.0,32522.0,0.13632608]
[1609813774894,0.1631706,32525.0,32522.0,0.13632608]
[1609813775795,0.13632608,32525.0,32522.0,0.13632608]
[1609813779000,0.02709666,32534.0,32519.0,3.5241]
[1609813780401,0.02709666,32534.0,32525.0,0.13632608]
[1609813780802,5.0822,32527.0,32525.0,0.13632608]
[1609813782206,0.11847,32530.0,32525.0,0.13632608]
[1609813782404,0.13632608,32526.0,32525.0,0.13632608]
[1609813790015,0.11847,32530.0,32525.0,0.13632608]
[1609813790213,0.02716131,32535.0,32526.0,5.0747]
[1609813790413,0.02716131,32535.0,32534.0,0.13632608]
[1609813792417,0.16348739,32535.0,32534.0,0.13632608]
[1609813793019,0.15437209,32535.0,32534.0,0.13632608]
[1609813793820,0.13632608,32535.0,32523.0,0.12338]
[1609813794021,3.8695,32529.0,32523.0,0.12338]
[1609813794218,0.12473,32532.0,32516.0,0.12833]
[1609813794418,4.3797,32524.0,32516.0,0.12833]
[1609813795019,0.13632608,32517.0,32516.0,0.12833]
[1609813795218,0.81992608,32517.0,32509.0,0.09876]
[1609813795618,0.6836,32517.0,32504.0,2.23804747]
[1609813795821,0.6836,32517.0,32501.0,4.6344]
[1609813797420,0.6836,32517.0,32505.0,0.13632608]
[1609813797819,0.6836,32517.0,32505.0,0.28329608]
[1609813799420,0.13632608,32506.0,32505.0,0.28329608]
[1609813806030,0.6836,32517.0,32505.0,0.14697]
[1609813806229,0.6836,32517.0,32501.0,4.6344]
[1609813806430,0.6836,32517.0,32505.0,0.16015]
[1609813806634,0.00894863,32518.0,32505.0,0.16015]
[1609813807033,0.00894863,32518.0,32506.0,4.5386]
[1609813807633,0.00894863,32518.0,32517.0,0.13632608]
[1609813807834,0.13632608,32521.0,32517.0,0.13632608]
[1609813808833,0.13632608,32521.0,32517.0,4.85392608]
[1609813809838,0.00890592,32531.0,32517.0,4.85392608]
[1609813810837,0.15125124,32532.0,32517.0,4.85392608]
[1609813811337,0.12473,32532.0,32517.0,4.85392608]
[1609813811536,0.0264785,32533.0,32517.0,4.85392608]
[1609813811736,0.0264785,32533.0,32523.0,0.13632608]
[1609813813638,0.13632608,32524.0,32523.0,0.13632608]
[1609813815638,0.13632608,32524.0,32514.0,0.13632608]
[1609813817740,0.13632608,32515.0,32514.0,0.13632608]
[1609813825050,0.84342608,32515.0,32514.0,0.13632608]
[1609813825251,0.84342608,32515.0,32513.0,0.14201]
[1609813825450,0.84342608,32515.0,32505.0,0.16015]
[1609813825851,0.13632608,32506.0,32495.0,2.24024686]
[1609813826051,3.5911,32503.0,32495.0,2.24024686]
[1609813826553,3.5911,32503.0,32494.0,2.24110391]
[1609813826956,3.5911,32503.0,32485.0,4.555]
[1609813827754,3.5911,32503.0,32496.0,0.13632608]
[1609813827954,0.15814,32511.0,32496.0,0.13632608]
[1609813829756,0.15814,32511.0,32502.0,0.13632608]
[1609813830255,0.5749,32510.0,32502.0,0.13632608]
[1609813831760,0.5749,32510.0,32493.0,0.10862]
[1609813832261,0.5749,32510.0,32502.0,0.13632608]
[1609813832460,0.15814,32511.0,32502.0,0.13632608]
[1609813832659,4.7648,32503.0,32502.0,0.13632608]
[1609813834063,4.7648,32503.0,32493.0,0.10862]
[1609813834263,0.13632608,32497.0,32496.0,0.13632608]
[1609813834764,0.67082608,32497.0,32496.0,0.13632608]
[1609813834964,0.67082608,32497.0,32476.0,2.23743627]
[1609813835164,0.13632608,32497.0,32476.0,2.23743627]
[1609813835364,4.7137,32488.0,32476.0,2.23743627]
[1609813835965,4.7137,32488.0,32462.0,4.2611]
[1609813835966,4.7137,32488.0,32474.0,2.23706146]
[1609813836365,4.7137,32488.0,32475.0,0.13632608]
[1609813836565,4.7137,32488.0,32474.0,2.23706146]
[1609813836766,4.7137,32488.0,32468.0,0.13319]
[1609813836965,0.1577,32492.0,32468.0,0.13319]
[1609813837165,3.8482,32482.0,32468.0,0.13319]
[1609813837366,0.1577,32492.0,32468.0,0.13319]
[1609813837565,0.12066,32482.0,32468.0,0.13319]
[1609813837766,5.0552,32470.0,32468.0,0.13319]
[1609813838366,0.13632608,32469.0,32468.0,0.26951608]
[1609813838566,0.13632608,32469.0,32468.0,0.13319]
[1609813838966,0.13632608,32469.0,32451.0,2.23473834]
[1609813839568,0.13632608,32469.0,32445.0,2.23466597]
[1609813840369,4.5869,32462.0,32458.0,0.13632608]
[1609813840969,0.12342,32474.0,32458.0,0.13632608]
[1609813841570,0.66182,32474.0,32458.0,0.13632608]
[1609813842271,0.13632608,32459.0,32458.0,0.13632608]
[1609813844171,0.12342,32474.0,32458.0,0.13632608]
[1609813844371,3.68356,32482.0,32466.0,0.13632608]
[1609813844872,0.12066,32482.0,32466.0,0.13632608]
[1609813845073,0.00857486,32490.0,32467.0,4.1458]
[1609813845473,0.276,32491.0,32467.0,4.1458]
[1609813845973,4.771,32484.0,32466.0,0.13632608]
[1609813846173,4.89273,32484.0,32466.0,0.13632608]
[1609813846375,0.13632608,32467.0,32466.0,0.13632608]
[1609813847276,0.13632608,32467.0,32458.0,0.09806]
[1609813848276,0.13632608,32467.0,32451.0,0.11616]
[1609813848477,0.13632608,32459.0,32455.0,0.13632608]
[1609813850076,0.13632608,32459.0,32448.0,3.9108]
[1609813850477,5.19237,32470.0,32449.0,0.13632608]
[1609813852482,5.19237,32470.0,32455.0,0.13632608]
[1609813852683,5.19237,32470.0,32448.0,3.9108]
[1609813853085,0.11147,32470.0,32446.0,0.12354]
[1609813853284,4.5401,32457.0,32446.0,0.12354]
[1609813854086,4.5401,32457.0,32428.0,3.5081]
[1609813854488,4.5401,32457.0,32439.0,0.13632608]
[1609813856288,0.0934,32456.0,32439.0,0.13632608]
[1609813856489,0.13632608,32440.0,32439.0,0.13632608]
[1609813856689,0.13632608,32440.0,32436.0,0.0998]
[1609813856890,0.13632608,32440.0,32417.0,3.5828]
[1609813857090,0.10965,32449.0,32403.0,2.20684815]
[1609813857289,4.8704,32432.0,32403.0,2.36736815]
[1609813857691,4.8704,32432.0,32403.0,0.16052]
[1609813858391,0.13632608,32436.0,32431.0,0.13632608]
[1609813858992,0.1522,32441.0,32424.0,0.11018]
[1609813859492,3.8215,32436.0,32424.0,0.11018]
[1609813860394,3.8215,32436.0,32433.0,0.13632608]
[1609813860597,3.8215,32436.0,32424.0,0.11018]
[1609813862296,3.8215,32436.0,32407.0,5.0287]
[1609813862496,3.8215,32436.0,32421.0,0.13632608]
[1609813862697,0.1522,32441.0,32421.0,0.13632608]
[1609813862898,3.9326,32442.0,32421.0,0.13632608]
[1609813864398,0.13632608,32422.0,32421.0,0.13632608]
[1609813865099,4.0675,32421.0,32403.0,0.16052]
[1609813865500,4.0675,32421.0,32396.0,3.4795]
[1609813866603,4.0675,32421.0,32413.0,0.13632608]
[1609813866801,0.09704,32434.0,32413.0,0.23911608]
[1609813867501,0.4935,32433.0,32413.0,0.23911608]
[1609813868705,0.4935,32433.0,32420.0,0.13632608]
[1609813870707,0.13632608,32421.0,32420.0,0.13632608]
[1609813871308,0.13632608,32421.0,32413.0,0.10279]
[1609813871908,0.13632608,32421.0,32402.0,4.2377]
[1609813872108,0.13632608,32421.0,32388.0,0.1771]
[1609813872609,4.2965,32426.0,32388.0,0.1771]
[1609813872809,4.2965,32426.0,32388.0,0.3383]
[1609813873111,4.2965,32426.0,32415.0,0.13632608]
[1609813873311,0.09704,32434.0,32415.0,0.13632608]
[1609813873511,4.1701,32437.0,32412.0,0.11726]
[1609813874913,0.15027,32442.0,32412.0,0.11726]
[1609813875113,4.8057,32423.0,32420.0,0.13632608]
[1609813876013,4.8057,32423.0,32412.0,0.11726]
[1609813877116,4.8057,32423.0,32416.0,0.13632608]
[1609813878617,4.8057,32423.0,32412.0,0.11726]
[1609813878817,4.8057,32423.0,32391.0,4.651]
[1609813879118,4.8057,32423.0,32411.0,0.13632608]
[1609813879318,4.8057,32423.0,32411.0,0.29337608]
[1609813881220,0.13632608,32412.0,32411.0,0.29337608]
[1609813882922,4.8057,32423.0,32411.0,0.15705]
[1609813883524,0.13632608,32412.0,32411.0,0.29337608]
[1609813884126,0.65912608,32412.0,32411.0,0.29337608]
[1609813884725,0.65912608,32412.0,32411.0,0.15705]
[1609813885126,0.65912608,32412.0,32388.0,0.3383]
[1609813885525,0.5228,32412.0,32405.0,0.13632608]
[1609813885725,0.5228,32412.0,32405.0,0.26929608]
[1609813887627,0.13632608,32406.0,32405.0,0.26929608]
[1609813887833,0.79602608,32406.0,32405.0,0.26929608]
[1609813890435,0.13632608,32406.0,32405.0,0.26929608]
[1609813890634,3.9681,32423.0,32405.0,0.26929608]
[1609813891534,3.9681,32423.0,32421.0,0.13632608]
[1609813891741,0.15155,32432.0,32421.0,0.13632608]
[1609813891935,4.6022,32433.0,32421.0,0.13632608]
[1609813893540,4.6022,32433.0,32429.0,0.13632608]
[1609813894140,4.6022,32433.0,32419.0,0.10555]
[1609813895537,4.6022,32433.0,32421.0,0.13632608]
[1609813897640,0.13632608,32422.0,32421.0,0.13632608]
[1609813899541,4.6022,32433.0,32421.0,0.13632608]
[1609813900345,4.6022,32433.0,32419.0,0.10555]
[1609813900547,4.6022,32433.0,32406.0,3.7535]
[1609813901547,4.6022,32433.0,32425.0,0.13632608]
[1609813902147,4.6022,32433.0,32416.0,0.1503]
[1609813903548,4.6022,32433.0,32420.0,0.13632608]
[1609813905452,0.1088,32438.0,32420.0,0.13632608]
[1609813905751,5.1325,32448.0,32416.0,0.1503]
[1609813906951,5.1325,32448.0,32416.0,0.1177]
[1609813907654,5.1325,32448.0,32423.0,0.13632608]
[1609813908256,0.0912,32447.0,32423.0,0.13632608]
[1609813909457,5.1325,32448.0,32423.0,0.13632608]
[1609813909657,5.1325,32448.0,32428.0,0.13632608]
[1609813911765,0.13632608,32429.0,32428.0,0.13632608]
[1609813912264,0.23012608,32429.0,32428.0,0.13632608]
[1609813912462,0.13632608,32429.0,32428.0,0.13632608]
[1609813913464,0.22862608,32429.0,32428.0,0.13632608]
[1609813913665,0.13632608,32429.0,32428.0,0.13632608]
[1609813914868,0.22922608,32429.0,32428.0,0.13632608]
[1609813915468,0.0926,32437.0,32428.0,0.13632608]
[1609813915668,0.0926,32437.0,32436.0,0.13632608]
[1609813915869,0.10965,32449.0,32436.0,0.13632608]
[1609813916069,0.02614273,32454.0,32436.0,0.13632608]
[1609813916671,0.00878313,32455.0,32436.0,0.13632608]
[1609813917172,4.5096,32456.0,32436.0,0.13632608]
[1609813917471,0.18345626,32460.0,32436.0,0.13632608]
[1609813917673,0.15723,32460.0,32448.0,0.13632608]
[1609813917871,0.00880797,32461.0,32448.0,0.13632608]
[1609813919574,0.02626678,32463.0,32448.0,0.13632608]
[1609813919872,0.13632608,32449.0,32448.0,0.13632608]
[1609813920474,0.10491,32462.0,32442.0,0.15245]
[1609813921678,0.10491,32462.0,32452.0,0.13632608]
[1609813923679,0.13632608,32453.0,32452.0,0.13632608]
[1609813924382,0.13632608,32453.0,32442.0,0.15245]
[1609813924581,0.13632608,32453.0,32438.0,4.9252]
[1609813925685,0.10491,32462.0,32447.0,0.13632608]
[1609813926083,0.00880855,32467.0,32447.0,0.13632608]
[1609813927785,0.00880855,32467.0,32451.0,0.13632608]
[1609813928589,0.00881557,32468.0,32451.0,0.13632608]
[1609813929791,0.13632608,32452.0,32451.0,0.13632608]
[1609813930391,0.13632608,32452.0,32441.0,0.14623]
[1609813931093,0.13632608,32452.0,32438.0,4.9252]
[1609813931792,0.13632608,32452.0,32451.0,0.13632608]
[1609813935298,0.13632608,32452.0,32446.0,0.11412]
[1609813935496,5.0325,32447.0,32433.0,0.10459]
[1609813935698,0.13632608,32434.0,32428.0,2.23516205]
[1609813935897,3.65462608,32434.0,32428.0,2.23516205]
[1609813936097,3.5183,32434.0,32428.0,2.23516205]
[1609813936297,3.65463,32434.0,32428.0,2.23516205]
[1609813937698,3.65463,32434.0,32426.0,2.23375716]
[1609813937899,0.13632608,32429.0,32426.0,2.23375716]
[1609813938099,0.13632608,32429.0,32418.0,0.13632608]
[1609813939898,0.13632608,32419.0,32418.0,0.13632608]
[1609813942600,0.25440608,32419.0,32418.0,0.13632608]
[1609813942800,0.25440608,32419.0,32400.0,2.23398078]
[1609813943803,4.0513,32414.0,32394.0,2.23418821]
[1609813944003,0.11808,32419.0,32394.0,2.23418821]
[1609813944204,3.8908,32402.0,32394.0,2.37303821]
[1609813944603,7.28688,32419.0,32394.0,2.17143821]
[1609813944604,0.13632608,32395.0,32394.0,2.17143821]
[1609813944803,0.26205608,32395.0,32394.0,2.17143821]
[1609813945004,0.26205608,32395.0,32394.0,0.13885]
[1609813945404,0.26205608,32395.0,32387.0,2.4211803]
[1609813945804,0.35405608,32395.0,32387.0,2.4211803]
[1609813946503,0.26205608,32395.0,32387.0,2.4211803]
[1609813946703,0.12573,32395.0,32391.0,0.13632608]
[1609813947204,4.8302,32392.0,32391.0,0.13632608]
[1609813947803,4.8302,32392.0,32387.0,2.4211803]
[1609813948605,0.64932608,32388.0,32387.0,2.4211803]
[1609813949908,0.6044,32388.0,32387.0,2.4211803]
[1609813950109,0.513,32388.0,32387.0,2.4211803]
[1609813950408,0.12573,32395.0,32387.0,2.4211803]
[1609813950608,0.13632608,32388.0,32387.0,2.4211803]
[1609813950810,4.82404,32402.0,32387.0,2.4211803]
[1609813951011,4.82404,32402.0,32385.0,0.13632608]
[1609813952614,4.82404,32402.0,32390.0,0.13632608]
[1609813953315,4.82404,32402.0,32382.0,0.11258]
[1609813954716,4.82404,32402.0,32390.0,0.13632608]
[1609813954915,0.14934,32402.0,32390.0,0.13632608]
[1609813955115,0.12604,32409.0,32390.0,0.13632608]
[1609813955317,0.4631059,32413.0,32390.0,0.13632608]
[1609813955516,4.017,32407.0,32390.0,0.13632608]
[1609813955716,0.0925,32406.0,32390.0,0.13632608]
[1609813955919,4.6854,32406.0,32390.0,0.13632608]
[1609813956616,0.13632608,32391.0,32390.0,0.13632608]
[1609813957518,3.90942608,32391.0,32390.0,0.13632608]
[1609813957718,3.90942608,32391.0,32382.0,0.11258]
[1609813957919,3.90942608,32391.0,32374.0,0.10685]
[1609813958118,3.90942608,32391.0,32369.0,4.7399]
[1609813958719,0.09762,32398.0,32384.0,0.13632608]
[1609813958920,0.19022,32398.0,32384.0,0.13632608]
[1609813959621,3.6889,32391.0,32384.0,0.13632608]
[1609813960622,0.13632608,32385.0,32384.0,0.13632608]
[1609813963122,4.04802608,32385.0,32384.0,0.13632608]
[1609813963523,4.04802608,32385.0,32383.0,0.14769]
[1609813963724,3.9117,32385.0,32383.0,0.14769]
[1609813963925,3.9873,32384.0,32360.0,0.1771]
[1609813964124,3.9873,32384.0,32356.0,4.6318]
[1609813964323,0.0937,32390.0,32348.0,2.21386535]
[1609813964523,4.7827,32375.0,32348.0,2.35285535]
[1609813964724,4.7827,32375.0,32348.0,0.13899]
[1609813964923,4.7827,32375.0,32362.0,0.13632608]
[1609813965325,0.0937,32390.0,32362.0,0.28769608]
[1609813965525,3.7274,32388.0,32362.0,0.15137]
[1609813966928,3.7274,32388.0,32364.0,0.13632608]
[1609813967130,0.13772,32391.0,32362.0,0.15137]
[1609813967330,3.8232,32368.0,32362.0,0.15137]
[1609813968029,0.12332,32382.0,32362.0,0.15137]
[1609813968230,4.7211,32370.0,32362.0,0.15137]
[1609813968832,0.0923,32369.0,32362.0,0.15137]
[1609813969029,0.0923,32369.0,32365.0,0.13632608]
[1609813969530,4.7211,32370.0,32365.0,0.13632608]
[1609813969830,1.7836,32518.0,32365.0,0.13632608]
[1609813970037,4.8281,32397.0,32365.0,0.13632608]
[1609813970639,4.8281,32397.0,32366.0,0.6198]
[1609813970838,0.61300083,32400.0,32365.0,0.13632608]
[1609813971041,0.61300083,32400.0,32370.0,4.564]
[1609813971235,0.61300083,32400.0,32370.0,4.70555]
[1609813972036,0.11956,32407.0,32370.0,4.70555]
[1609813972334,0.30018019,32414.0,32381.0,0.13632608]
[1609813972534,0.7245,32407.0,32381.0,0.23856608]
[1609813973137,0.0934,32406.0,32381.0,0.23856608]
[1609813973336,0.7245,32407.0,32381.0,0.23856608]
[1609813973940,0.0916,32406.0,32381.0,0.10224]
[1609813974538,0.7245,32407.0,32389.0,0.13632608]
[1609813974839,0.7245,32407.0,32389.0,0.27245608]
[1609813975638,0.092,32406.0,32389.0,0.27245608]
[1609813976040,0.092,32406.0,32389.0,0.13613]
[1609813976242,0.7245,32407.0,32389.0,0.13613]
[1609813976542,0.13632608,32390.0,32389.0,0.27245608]
[1609813977840,4.8153,32398.0,32389.0,0.13613]
[1609813978441,4.8153,32398.0,32389.0,0.01503]
[1609813978641,0.13632608,32390.0,32389.0,0.01503]
[1609813978846,4.8153,32398.0,32389.0,0.01503]
[1609813979346,0.13834,32408.0,32389.0,0.01503]
[1609813979543,0.4631059,32413.0,32389.0,0.01503]
[1609813979945,0.4631059,32413.0,32381.0,0.10224]
[1609813980143,0.5669559,32413.0,32378.0,3.5828]
[1609813980345,0.5669559,32413.0,32370.0,0.14155]
[1609813980545,0.13632608,32379.0,32377.0,0.13632608]
[1609813981048,0.19651,32405.0,32362.0,4.35217]
[1609813982147,0.10351,32405.0,32362.0,4.35217]
[1609813982550,0.10351,32405.0,32379.0,0.13632608]
[1609813982750,0.10351,32405.0,32379.0,0.29693608]
[1609813983050,0.0924,32404.0,32379.0,0.29693608]
[1609813983250,0.10351,32405.0,32379.0,0.29693608]
[1609813984153,0.0932,32404.0,32379.0,0.29693608]
[1609813984850,0.0932,32404.0,32379.0,0.16061]
[1609813985250,0.0932,32404.0,32380.0,0.13632608]
[1609813985851,0.10351,32405.0,32380.0,0.13632608]
[1609813986053,4.5679,32406.0,32380.0,0.13632608]
[1609813986654,4.5679,32406.0,32379.0,0.16061]
[1609813987053,4.72069,32406.0,32379.0,0.16061]
[1609813987253,0.13632608,32380.0,32379.0,0.16061]
[1609813987454,0.22782608,32380.0,32379.0,0.16061]
[1609813987653,0.13632608,32380.0,32377.0,0.13632608]
[1609813988154,0.22384,32398.0,32362.0,4.35217]
[1609813988355,0.13224,32398.0,32362.0,4.35217]
[1609813989257,0.0934,32397.0,32362.0,4.35217]
[1609813989455,0.6889,32397.0,32362.0,4.35217]
[1609813989654,4.9852,32390.0,32362.0,0.15137]
[1609813989855,4.9852,32390.0,32369.0,0.13632608]
[1609813990055,4.9852,32390.0,32369.0,0.11331]
[1609813991155,0.0918,32389.0,32369.0,0.11331]
[1609813991556,4.9852,32390.0,32369.0,0.11331]
[1609813991857,4.9852,32390.0,32375.0,0.13632608]
[1609813992555,0.0923,32389.0,32375.0,0.13632608]
[1609813992955,0.0923,32389.0,32369.0,0.11331]
[1609813993156,4.9852,32390.0,32369.0,0.11331]
[1609813994559,4.9852,32390.0,32372.0,0.13632608]
[1609813994758,0.0938,32389.0,32372.0,0.13632608]
[1609813996159,0.13224,32398.0,32372.0,0.13632608]
[1609813996359,4.7202,32399.0,32372.0,0.13632608]
[1609813996558,0.13632608,32373.0,32372.0,0.13632608]
[1609813999464,3.5062,32384.0,32369.0,0.11331]
[1609813999867,0.1194,32397.0,32348.0,2.41014389]
[1609814000064,0.1194,32397.0,32369.0,0.11461]
[1609814000264,0.1194,32397.0,32369.0,4.02471]
[1609814000465,0.13632608,32388.0,32387.0,0.13632608]
[1609814002168,0.00878764,32395.0,32387.0,0.13632608]
[1609814002371,0.00878764,32395.0,32387.0,0.28698608]
[1609814002569,0.14511372,32395.0,32394.0,0.13632608]
[1609814003270,0.53449498,32396.0,32394.0,0.13632608]
[1609814003476,0.53449498,32396.0,32387.0,0.15066]
[1609814003874,0.53449498,32396.0,32393.0,4.066]
[1609814004076,0.53449498,32396.0,32387.0,0.15066]
[1609814004475,0.53449498,32396.0,32395.0,0.13632608]
[1609814004678,0.53449498,32396.0,32395.0,0.26692608]
[1609814006674,0.36519498,32396.0,32395.0,0.26692608]
[1609814006873,0.36519498,32396.0,32395.0,0.1306]
[1609814008474,0.36519498,32396.0,32395.0,0.26692608]
[1609814009675,0.36519498,32396.0,32387.0,0.15066]
[1609814009877,0.36519498,32396.0,32378.0,4.1785]
[1609814010075,0.36519498,32396.0,32369.0,0.11461]
[1609814010277,0.36519498,32396.0,32365.0,4.0526]
[1609814010475,4.9921,32399.0,32364.0,2.24251983]
[1609814010675,4.9921,32399.0,32384.0,0.13632608]
[1609814010877,4.9921,32399.0,32384.0,0.29589608]
[1609814011776,4.9921,32399.0,32384.0,0.15957]
[1609814011977,0.01754953,32397.0,32384.0,0.15957]
[1609814012379,0.01752735,32395.0,32384.0,0.15957]
[1609814012577,0.13632608,32385.0,32384.0,0.15957]